Cogmind - Beta 14 *** ADVENTURER MODE // 2025.03.04 @ 13:33:44 // Winter2019/RPGLIKE Player: Gallgagger Result: Destroyed by G-73 Enforcer with Phase Gun Performance ------------- Evolutions (8) 4000 Regions Visited (19) 3800 Robots Destroyed (534) 2670 Value Destroyed (24630) 24630 Prototype IDs (41) 820 Alien Tech Used (0) 0 Bonus (13437) 13437 TOTAL SCORE: 49357 Bonus ------- High Alert Combat Kills 9336 Follower Combat Kills 931 Entered Garrisons 1000 Used RIF Installer 2500 Friendly Fire -330 Cogmind --------- Core Integrity 0/1100 Matter 386/400 Energy 249/2750 System Corruption 1% Temperature Cool (3) Movement Immobile (Siege) Location -2/Research Parts ------- > --- POWER (3) -------- Light Antimatter Reactor MA-1KR's Cyclogen Light Particle Reactor > --- PROPULSION (6) --- Tri-treads Tri-treads > --- UTILITY (12) ----- Siege Articulator Siege Articulator Experimental Sensor Array Advanced Target Analyzer Improved Armor Integrity Analyzer Improved Kinecellerator Advanced Phase Shifter Makeshift Ablative Armor Improved Force Field System Mapper Long-range Tractor Beam > --- WEAPON (4) ------- Siege Cannon > --- INVENTORY (5) ---- Protomatter-52 Siege Articulator CPS Tube (2) Deploy-a-Sentry Peak State ------------ > --- POWER ------------ Light Antimatter Reactor MA-1KR's Cyclogen Light Particle Reactor > --- PROPULSION ------- Tri-treads Tri-treads > --- UTILITY ---------- Siege Articulator Siege Articulator Experimental Sensor Array Advanced Signal Interpreter Advanced Target Analyzer Improved Armor Integrity Analyzer Improved Kinecellerator Advanced Phase Shifter Makeshift Ablative Armor Improved Force Field System Mapper Long-range Tractor Beam > --- WEAPON ----------- Hypervelocity Multirail Siege Cannon > --- INVENTORY -------- Protomatter Siege Articulator CPS Tube Deploy-a-Sentry [Rating: 172] Favorites ----------- Power Light Antimatter Reactor Engine Light Ion Engine Power Core Micro Nuclear Core Reactor Light Antimatter Reactor Propulsion Tri-treads Treads Tri-treads Wheel Wheel Hover Unit Linear Gravjet Flight Unit Flightbrick Utility Siege Articulator Device Siege Articulator Storage High-capacity Matter Pod Processor Improved Signal Interpreter Hackware System Mapper Protection Makeshift Ablative Armor Weapon Siege Cannon Energy Gun Variable Charge Gun Energy Cannon Advanced Plasma Cannon Ballistic Gun Hypervelocity Multirail Ballistic Cannon Siege Cannon Special Weapon CPS Tube Impact Weapon Power Maul Slashing Weapon Blade Saw Build | -11 -10 -10 -8 -8 -8 -8 -7 -7 -7 -7 -7 -7 -5 -5 -4 -4 -3 -3 -2 ------- Run | Yrd Mat Sub Mat Gar Mat Gar Fac Gar Fac Sto Rec Scr Fac Gar Fac Gar Res Tes Res Slots Evolved 21 | 4 4 1 2 1 1 . 1 1 . . . 1 1 . 1 1 . 1 1 Power 2 | 1 1 . . . . . . . . . . . . . . . . . . Propulsion 5 | 1 2 . 1 . . . . . . . . 1 . . . . . . . Utility 11 | 1 1 . 1 1 1 . 1 1 . . . . 1 . 1 1 . . 1 Weapon 3 | 1 . 1 . . . . . . . . . . . . . . . 1 . Parts Attached 132 | 6 14 3 7 5 7 . 7 10 5 9 . 27 2 2 4 3 2 17 2 Power 17 | 2 1 . 1 . . . . 7 1 . . 2 . 1 . . 1 . 1 Engine 4 | 2 1 . . . . . . 1 . . . . . . . . . . . Core 8 | . . . 1 . . . . 5 1 . . 1 . . . . . . . Reactor 5 | . . . . . . . . 1 . . . 1 . 1 . . 1 . 1 Propulsion 34 | 2 4 1 1 . 4 . 5 2 3 6 . 6 . . . . . . . Treads 4 | . . . . . . . . . . . . 4 . . . . . . . Leg . | . . . . . . . . . . . . . . . . . . . . Wheel 3 | 2 . . . . . . . . . . . 1 . . . . . . . Hover 20 | . 4 . . . . . 4 2 3 6 . 1 . . . . . . . Flight 7 | . . 1 1 . 4 . 1 . . . . . . . . . . . . Utility 61 | . 4 1 4 2 3 . 2 1 . . . 17 2 1 4 3 1 15 1 Device 32 | . 1 1 2 . 3 . 1 1 . . . 8 1 . 2 2 . 9 1 Storage 8 | . . . . . . . . . . . . 8 . . . . . . . Processor 10 | . 1 . 1 . . . 1 . . . . . . . 1 1 1 4 . Hackware 1 | . . . . . . . . . . . . . . . . . . 1 . Protection 10 | . 2 . 1 2 . . . . . . . 1 1 1 1 . . 1 . Artifact . | . . . . . . . . . . . . . . . . . . . . Weapon 20 | 2 5 1 1 3 . . . . 1 3 . 2 . . . . . 2 . Energy Gun 9 | 1 4 . . 1 . . . . . 2 . . . . . . . 1 . Energy Cannon 2 | . . . . 1 . . . . . 1 . . . . . . . . . Ballistic Gun 4 | 1 . 1 1 . . . . . . . . . . . . . . 1 . Ballistic Cannon 1 | . . . . . . . . . . . . 1 . . . . . . . Launcher . | . . . . . . . . . . . . . . . . . . . . Special Weapon 1 | . . . . . . . . . . . . 1 . . . . . . . Impact Weapon 2 | . 1 . . . . . . . 1 . . . . . . . . . . Slashing Weapon 1 | . . . . 1 . . . . . . . . . . . . . . . Piercing Weapon . | . . . . . . . . . . . . . . . . . . . . Special Melee Weapon . | . . . . . . . . . . . . . . . . . . . . Unidentified Prototypes 19 | . . 2 . . 2 . 1 . 1 2 . 3 . . 1 1 . 6 . Parts Lost . | . . . . . . . . . . . . . . . . . . . . Power . | . . . . . . . . . . . . . . . . . . . . Propulsion . | . . . . . . . . . . . . . . . . . . . . Utility . | . . . . . . . . . . . . . . . . . . . . Weapon . | . . . . . . . . . . . . . . . . . . . . Highest Loss Streak . | . . . . . . . . . . . . . . . . . . . . To Critical Strikes . | . . . . . . . . . . . . . . . . . . . . Average Slot Usage (%) 75 | . 89 63 54 59 60 60 68 95 100 100 100 75 70 70 71 72 73 73 74 Engine 2 | . 21 12 10 5 5 5 5 3 . . . . . . . . . . . Core 3 | . . . . 5 5 5 5 9 10 10 10 8 4 1 . . . . . Reactor 7 | . . . . . . . . 1 5 5 5 6 9 12 13 13 13 12 12 Treads 5 | . . . . . . . . . . . . 7 9 9 9 8 8 8 8 Hover 6 | . 22 8 . . . . 4 25 26 26 26 5 . . . . . . . Flight 1 | . . 4 5 10 10 10 7 . . . . . . . . . . . . Device 22 | . 9 9 13 10 13 15 18 22 26 26 26 22 25 28 29 30 30 27 26 Storage 2 | . . . . . . . . . . . . 6 4 4 4 4 4 . . Processor 5 | . 9 6 5 5 5 5 6 10 10 10 10 1 . . . . 4 10 11 Protection 6 | . 1 3 1 5 5 5 5 5 5 5 5 9 9 8 8 8 8 5 4 Energy Gun 3 | . 10 12 11 6 5 5 5 5 5 5 5 1 . . . . . . . Energy Cannon 1 | . . . . 1 5 5 5 5 5 4 5 1 . . . . . . . Ballistic Cannon 2 | . . . . . . . . . . . . 3 4 4 4 4 4 4 4 Peak Build Rating 172 | 6 14 49 62 73 80 77 84 94 97 97 97 120 126 129 136 140 142 165 172 Average Rating 105 | 4 8 39 51 66 75 76 76 73 95 96 97 107 121 128 134 136 140 156 166 On Entrance 88 | . 6 14 47 61 73 76 77 63 94 97 97 97 120 126 129 136 140 142 165 Naked Turns . | . . . . . . . . . . . . . . . . . . . . Heaviest Build 113 | 9 20 24 27 38 39 39 40 55 57 57 57 104 102 108 113 113 113 113 112 Greatest Support 114 | 26 26 24 29 39 39 39 46 62 62 61 61 114 114 114 114 114 114 114 114 Greatest Overweight (x) 2 | . 1 . . . . . . . . . . 2 . . . . . . . Average Overweight (x) . | . . . . . . . . . . . . . . . . . . . . Largest Inventory Capacity 5 | . 1 1 2 4 4 4 4 4 4 4 4 4 4 4 5 5 5 5 5 Average Capacity 3 | . . 1 1 2 4 4 4 4 4 4 4 4 4 4 4 5 5 5 5 Most Carried 5 | . 1 1 2 4 4 4 4 4 4 4 4 4 4 4 5 5 4 5 5 Average Carried 3 | . . . 1 2 3 3 3 2 4 4 4 2 3 3 4 4 4 4 4 Final Capacity 5 | . 1 1 2 4 4 4 4 4 4 4 4 4 4 4 5 5 5 5 5 Final Carried 5 | . 1 1 2 4 4 4 1 4 4 4 4 4 3 4 5 4 4 5 4 Class Distribution -------------------- 50% | Scavenger-Gunner 15% | Scavenger-Mutant 13% | Mutant 7% | Hacker-Gunner 6% | Commander-Mutant Dominant Class ---------------- Mutant | -10/Materials Skirmisher | -10/Subcaves Gunner | -8/Materials Mutant | -8/Garrison Scavenger-Mutant | -8/Materials Scavenger-Mutant | -8/Garrison Scavenger-Mutant | -7/Factory Scavenger-Mutant | -7/Garrison Scavenger-Mutant | -7/Factory Scavenger-Mutant | -7/Storage Commander-Mutant | -7/Recycling Scavenger-Gunner | -7/Scraptown Scavenger-Gunner | -5/Factory Scavenger-Gunner | -5/Garrison Scavenger-Gunner | -4/Factory Scavenger-Gunner | -4/Garrison Scavenger-Gunner | -3/Research Scavenger-Gunner | -3/Testing Hacker-Gunner | -2/Research Resources | -11 -10 -10 -8 -8 -8 -8 -7 -7 -7 -7 -7 -7 -5 -5 -4 -4 -3 -3 -2 ----------- Run | Yrd Mat Sub Mat Gar Mat Gar Fac Gar Fac Sto Rec Scr Fac Gar Fac Gar Res Tes Res Matter Collected 12901 | 142 284 110 125 170 50 20 24 146 40 100 . 4748 332 965 933 1340 1283 1367 722 Remotely 6584 | . . . . . . . . . . . . . 311 965 933 1120 1281 1252 722 Salvage Created 21757 | . 1059 226 673 587 1089 280 47 851 550 1671 2804 4068 327 690 650 1815 1076 2047 1247 Parts 1002 | . 33 20 39 32 66 21 4 52 30 66 39 214 23 34 40 53 63 119 54 Haulers Intercepted 1 | . . . . . 1 . . . . . . . . . . . . . . Recyclers Shooed 9 | . 1 . 1 . . . . . . . 7 . . . . . . . . Parts Field Recycled . | . . . . . . . . . . . . . . . . . . . . Retrieved Matter . | . . . . . . . . . . . . . . . . . . . . Parts Self-Destructed 16 | . . 12 . . . . . . . . . 4 . . . . . . . Prevented . | . . . . . . . . . . . . . . . . . . . . Kills | -11 -10 -10 -8 -8 -8 -8 -7 -7 -7 -7 -7 -7 -5 -5 -4 -4 -3 -3 -2 ------- Run | Yrd Mat Sub Mat Gar Mat Gar Fac Gar Fac Sto Rec Scr Fac Gar Fac Gar Res Tes Res Combat Hostiles Destroyed 473 | . 22 10 19 18 23 14 . 21 12 33 4 112 13 29 25 39 27 37 15 Melee 10 | . 9 . . . . . . . . . . . . . . . . 1 . Guns 106 | . 3 10 19 12 12 4 . 5 3 13 . . . . . . . 18 7 Cannons 335 | . . . . 5 10 9 . 16 8 18 2 111 13 29 23 38 27 18 8 AOE 2 | . . . . . . . . . . . . . . . 2 . . . . Classes Destroyed 32 | . 5 3 1 2 2 . . 1 . 1 1 10 . 2 1 1 . 2 . Worker 9 | . 4 . . . . . . . . 1 . . 1 . . . 1 2 . Builder 10 | . . . . . . . . . . . 3 . . . 2 . 2 2 1 Hauler 1 | . . . . . 1 . . . . . . . . . . . . . . Recycler 41 | . 2 . . . . . . . . . 34 1 1 . . . 1 1 1 Carrier 2 | . . . . . . . . . . . . . . . . . . 1 1 Mechanic 3 | . . . . . . . . . . . . . . . 1 . 1 1 . Operator 7 | . . . . . . . . . . 1 . . . . 1 . 2 3 . Turret 2 | . . 2 . . . . . . . . . . . . . . . . . Watcher 25 | . 3 . 4 . 2 . 2 . 1 2 . . 2 . 2 . 1 3 3 Swarmer 68 | . 3 4 2 4 5 10 . 8 3 3 . . . 4 5 10 3 4 . Cutter 4 | . . . . 2 . . . . . . . . . . . 2 . . . Saboteur 5 | . . . . . . . . . . . . . . 1 2 . . 2 . Grunt 153 | . 19 2 10 4 8 4 . 6 6 14 . . 7 17 7 11 17 19 2 Brawler 4 | . . . . . 1 . . . . 1 . . . . . . . 1 1 Duelist 7 | . . . . 1 . . . 1 . 1 . . . . . . 1 2 1 Researcher 1 | . . . . . . . . . . . . . . . . . . 1 . Sentry 58 | . . 1 5 5 9 . . 2 2 11 4 . 2 2 3 8 2 1 1 Specialist 1 | . . . . . . . . . . . . . . . . 1 . . . Hunter 28 | . . . 2 2 . . . 2 . 2 . . 1 4 2 2 1 5 5 Programmer 28 | . . . . . . . . 2 1 1 . . 3 . 6 4 3 3 5 Behemoth 2 | . . . . . . . . . . . . . . 1 . 1 . . . Subdweller 4 | . . 3 1 . . . . . . . . . . . . . . . . Bolteater 6 | . . . . . . . . . . . . 6 . . . . . . . Federalist 6 | . . . . . . . . . . . . 6 . . . . . . . Explorer 10 | . . . . . . . . . . . . 10 . . . . . . . Ranger 7 | . . . . . . . . . . . . 7 . . . . . . . Guru 14 | . . . . . . . . . . . . 14 . . . . . . . Scientist 5 | . . . . . . . . . . . . 5 . . . . . . . Scrapper 42 | . . . . . . . . . . . . 42 . . . . . . . Elite 27 | . . . . . . . . . . . . 27 . . . . . . . Zionite 2 | . . . . . . . . . . . . 2 . . . . . . . Packrat 1 | . . . . . . . . . . . . 1 . . . . . . . Tinkerer 1 | . . . . . . . . . . . . 1 . . . . . . . Best Kill Streak 36 | . 3 6 6 4 10 8 1 8 6 11 34 36 5 5 8 8 6 6 7 Combat Bots Only 34 | . 3 5 4 4 8 8 . 8 6 11 3 34 3 5 6 8 6 5 6 Max Kills in Single Turn 4 | . 1 2 1 1 2 2 1 2 2 2 1 2 2 2 4 2 3 3 2 Gunslinging 1 | . . 1 . . . . . . . . . . . . . . . . . Exploded 1 | . . . . . . . . . . . . . . . 1 . . . . Melee 1 | . 1 . . . . . . . . . . . . . . . . 1 . Uniques/NPCs Destroyed 1 | . . . . . . . . . . . . 1 . . . . . . . Triborg (-7/Scraptown) Combat | -11 -10 -10 -8 -8 -8 -8 -7 -7 -7 -7 -7 -7 -5 -5 -4 -4 -3 -3 -2 -------- Run | Yrd Mat Sub Mat Gar Mat Gar Fac Gar Fac Sto Rec Scr Fac Gar Fac Gar Res Tes Res Hostile Shots Fired 2098 | . 117 65 75 53 62 67 2 64 23 257 81 360 14 108 132 141 184 124 169 Missed 907 | . 41 27 35 20 25 26 . 27 14 135 54 144 3 45 59 57 87 49 59 Damage Taken 9536 | . 711 344 467 466 436 280 23 388 114 978 160 1090 75 404 434 513 650 688 1315 Core 6785 | . 543 263 361 346 316 200 18 268 93 681 123 704 47 277 286 346 437 502 974 Absorbed by Shields 4448 | . . . . 19 . 13 . . . . . 1110 82 433 473 546 697 438 637 Reduced by Siege Mode 158 | . . . . . . . . . . . . 56 1 16 12 17 11 13 32 Redirected to Core 6050 | . 405 206 335 298 294 173 18 228 54 605 95 671 47 271 273 312 412 438 915 Ignored by Resistances 6274 | . 223 105 135 141 126 96 7 115 34 308 52 1240 72 491 521 576 733 466 833 Core Remaining (%) 94 | 100 . 89 . . . 95 . . . . . 100 . 100 . 98 . 79 . Volleys Fired 1101 | . 22 52 40 41 39 29 5 45 19 81 19 257 23 64 64 93 90 70 48 Largest 3 | . 2 2 3 3 2 2 2 2 2 2 2 3 1 1 1 1 1 2 2 Hottest 323 | . 60 130 158 323 173 323 173 173 173 323 173 323 70 70 70 70 70 120 120 Shots Fired 1487 | . 42 75 98 80 77 52 8 71 33 150 38 261 23 65 64 93 90 93 74 Gun 561 | . 42 75 98 56 38 26 5 35 18 70 19 3 . . . . . 36 40 Cannon 925 | . . . . 24 39 26 3 36 15 80 19 257 23 65 64 93 90 57 34 Launcher . | . . . . . . . . . . . . . . . . . . . . Special 1 | . . . . . . . . . . . . 1 . . . . . . . Kinetic 832 | . 20 21 18 17 . . . . . . . 254 23 65 64 93 90 93 74 Thermal 634 | . 2 54 80 63 77 52 8 71 33 150 38 6 . . . . . . . Explosive . | . . . . . . . . . . . . . . . . . . . . Electromagnetic 20 | . 20 . . . . . . . . . . . . . . . . . . Robot Hit Streak 98 | . 11 80 44 41 28 19 7 29 22 28 22 84 98 28 39 31 30 42 36 Robot Miss Streak 5 | . 5 2 4 5 1 2 2 1 1 2 1 1 1 1 1 1 1 1 2 Penetration Max 2 | . . . . . . . . . . . . 2 1 2 2 1 2 1 2 Secondary Targets 9 | . 1 3 3 2 . . . . . . . . . . . . . . . Max Gunslinging Chain 1 | . 1 1 1 1 . . . . . . . . . . . . . . . Shots Hit Robots 1226 | . 88 51 83 59 62 39 3 55 24 114 55 235 22 57 42 76 47 64 50 Core Hits 799 | . 19 83 157 68 25 13 1 25 16 46 18 97 13 27 21 44 29 62 35 Critical Kills 43 | . 3 . . 1 . . 1 . 1 1 2 . . . . . . 23 11 Critical Parts Destroyed 75 | . 6 . . . . . . . . . 8 . . . . . . 28 33 Critical Strikes 200 | . 9 . . 2 . . 1 . 1 1 11 27 3 6 5 15 14 60 45 Meltdown 5 | . . . . 1 . . 1 . 1 1 1 . . . . . . . . Destroy 95 | . . . . . . . . . . . . . . . . . . 51 44 Blast 80 | . . . . . . . . . . . . 27 3 6 5 15 14 9 1 Smash 19 | . 9 . . . . . . . . . 10 . . . . . . . . Sever 1 | . . . . 1 . . . . . . . . . . . . . . . Melee Attacks 129 | . 75 . . 17 . . . 4 . 1 32 . . . . . . . . Impact 108 | . 75 . . . . . . . . 1 32 . . . . . . . . Slashing 21 | . . . . 17 . . . 4 . . . . . . . . . . . Piercing . | . . . . . . . . . . . . . . . . . . . . Sneak Attacks 32 | . 6 . . . . . . . . . 26 . . . . . . . . Combat Hostiles 3 | . 1 . . . . . . . . . 2 . . . . . . . . Follow-up Attacks . | . . . . . . . . . . . . . . . . . . . . Damage Inflicted 89918 | . 2254 979 1727 1726 2504 1593 103 2280 984 4733 3667 25550 2771 6524 6747 10746 7133 5138 2759 Guns 11015 | . 324 979 1727 1116 1093 766 61 738 415 1859 473 105 . . . . . 687 672 Cannons 73263 | . . . . 597 1411 827 42 1418 569 2811 423 25392 2771 6524 6156 10743 7041 4451 2087 Explosions 573 | . . . . . . . . . . . . . . . 573 . . . . Melee 4901 | . 1930 . . 13 . . . 124 . 63 2771 . . . . . . . . Ramming 166 | . . . . . . . . . . . . 53 . . 18 3 92 . . Kinetic 67121 | . 89 . 299 341 . . . . . . . 25260 2771 6524 6156 10743 7041 5138 2759 Thermal 17508 | . 13 979 1428 1372 2504 1593 103 2156 984 4670 896 237 . . 573 . . . . Explosive . | . . . . . . . . . . . . . . . . . . . . Electromagnetic 222 | . 222 . . . . . . . . . . . . . . . . . . Impact 4764 | . 1930 . . . . . . . . 63 2771 . . . . . . . . Slashing 137 | . . . . 13 . . . 124 . . . . . . . . . . . Piercing . | . . . . . . . . . . . . . . . . . . . . Highest Corruption 4 | . 1 1 . . 1 . . . . . . . 2 2 1 2 3 4 1 Average Corruption 2 | . 1 1 . . 1 . . . . . . . 1 2 1 1 2 3 1 Corruption Purged 1 | . . . . . 1 . . . . . . . . . . . . . . Corruption Blocked . | . . . . . . . . . . . . . . . . . . . . Effects 82 | . 4 8 . . 1 . . . . . . . 2 13 1 8 14 31 . Message Errors 20 | . 3 1 . . . . . . . . . . 1 3 . 1 3 8 . Matter Fused 24 | . 1 5 . . . . . . . . . . . 3 . 1 5 9 . Heat Flow Errors 5 | . . . . . . . . . . . . . . . . . 3 2 . Energy Discharges 12 | . . . . . . . . . . . . . 1 4 . 2 1 4 . Parts Rejected 1 | . . . . . . . . . . . . . . . . . 1 . . Data Loss (minor) 10 | . . 1 . . 1 . . . . . . . . 1 1 1 1 4 . Data Loss (major) 5 | . . . . . . . . . . . . . . 1 . 1 . 3 . Misfires 3 | . . . . . . . . . . . . . . 1 . 1 . 1 . Alerts 1 | . . 1 . . . . . . . . . . . . . . . . . Weapon Failures 1 | . . . . . . . . . . . . . . . . 1 . . . Overload Shots 7 | . . . . 3 . 2 . . . 1 . 1 . . . . . . . Overflow Damage 12044 | . 437 . . 6 25 28 . 40 . 213 1673 3211 521 745 1657 1043 1319 866 260 Projectiles 9859 | . . . . 6 25 28 . 40 . 190 22 3173 521 745 1621 1043 1319 866 260 Explosions 33 | . . . . . . . . . . . . . . . 33 . . . . Melee 2152 | . 437 . . . . . . . . 23 1651 38 . . 3 . . . . Knockbacks 206 | . 14 . . . . . . . . . 7 75 4 14 21 23 24 16 8 Impact 22 | . 14 . . . . . . . . . 6 1 . . . . 1 . . Kinetic 166 | . . . . . . . . . . . . 69 4 14 21 18 18 14 8 Secondary 18 | . . . . . . . . . . . 1 5 . . . 5 5 2 . Self-Inflicted Damage . | . . . . . . . . . . . . . . . . . . . . Shots . | . . . . . . . . . . . . . . . . . . . . Rammed 11 | . . . . . . . . . . . . 1 . . 1 2 7 . . Targets Rammed 11 | . . . . . . . . . . . . 1 . . 1 2 7 . . Kicked . | . . . . . . . . . . . . . . . . . . . . Crushed . | . . . . . . . . . . . . . . . . . . . . Highest Temperature 342 | . 156 28 264 342 200 200 94 200 200 200 200 200 . . . 2 200 187 17 Average Temperature 96 | . 44 12 70 118 101 105 41 82 63 132 127 43 . . . 2 98 59 8 Received Heat Transfer 3518 | . 381 180 321 135 252 81 18 111 51 414 72 530 20 156 150 124 127 201 194 Effects 9 | . . . 4 1 . . . 1 . 2 . 1 . . . . . . . Energy Bleed 4 | . . . 1 . . . . 1 . 2 . . . . . . . . . Interference 5 | . . . 3 1 . . . . . . . 1 . . . . . . . Siege Activations 196 | . . . . . . . . . . . . 62 9 18 17 23 29 30 8 Total Turns 1968 | . . . . . . . . . . . . 665 92 166 216 245 220 225 139 Longest Duration 91 | . . . . . . . . . . . . 91 43 26 43 35 17 28 36 Robots Corrupted 31 | . 15 . . . . . . . . . 11 2 . . 1 1 . 1 . Combat Hostiles 13 | . 10 . . . . . . . . . 1 1 . . . 1 . . . Parts Fried 37 | . 19 . . . . . . . . . 11 2 . . 3 . . 2 . Impact Corruptions 91 | . 23 . . . . . . . . 1 54 4 . . 1 2 3 3 . Robots Melted 8 | . . . . 1 1 1 1 . 1 2 1 . . . . . . . . Combat Hostiles 7 | . . . . 1 1 1 . . 1 2 1 . . . . . . . . Parts Melted 45 | . . 1 1 1 4 6 . 5 5 15 3 2 . . 2 . . . . Heat Transferred 19358 | . 37 1205 1665 1585 2832 1640 124 2314 1081 5096 1005 274 . . 500 . . . . Parts Sabotaged 3 | . . . . . . . . . . . . . . 1 . . . 2 . Parts Stolen . | . . . . . . . . . . . . . . . . . . . . Parts Stripped . | . . . . . . . . . . . . . . . . . . . . Power Chain Reactions . | . . . . . . . . . . . . . . . . . . . . Alert | -11 -10 -10 -8 -8 -8 -8 -7 -7 -7 -7 -7 -7 -5 -5 -4 -4 -3 -3 -2 ------- Run | Yrd Mat Sub Mat Gar Mat Gar Fac Gar Fac Sto Rec Scr Fac Gar Fac Gar Res Tes Res Peak Influence 2527 | . 533 . 547 1097 993 929 498 1103 820 1253 713 . 290 1299 1727 2527 2213 1638 1333 Initial 1237 | . . . 24 264 460 565 422 306 501 319 413 . . 178 590 1065 1237 1084 765 Average 919 | . 268 . 256 665 775 749 453 825 602 828 558 . 62 731 1033 1986 1602 1319 917 Maximum Alert Level 5 | . 2 . 2 3 3 3 2 4 3 4 3 . 1 4 5 5 5 5 4 Low Security (%) 11 | 100 34 . 38 . . . . . . . . . 91 6 . . . . . Level 1 8 | . 41 . 44 24 . . . 11 . 11 . . 8 11 . . . . . Level 2 21 | . 23 . 16 38 23 25 100 22 88 17 97 . . 19 38 . . . . Level 3 24 | . . . . 37 76 74 . 60 11 49 2 . . 54 21 1 . 20 91 Level 4 19 | . . . . . . . . 6 . 22 . . . 8 23 16 54 64 8 Level 5 14 | . . . . . . . . . . . . . . . 17 81 45 14 . High Security . | . . . . . . . . . . . . . . . . . . . . Max Security . | . . . . . . . . . . . . . . . . . . . . Squads Dispatched 68 | . 8 . 5 . 5 . 1 . 3 6 . . 3 . 9 . 8 13 7 Investigation 24 | . 8 . 2 . 2 . . . 1 2 . . 2 . 2 . 2 2 1 Extermination 8 | . . . . . . . . . 1 . . . 1 . 2 . 1 1 2 Reinforcement 14 | . . . 2 . 2 . 1 . 1 2 . . . . 2 . 1 . 3 Assault 17 | . . . . . . . . . . 2 . . . . 3 . 4 7 1 Garrison 5 | . . . 1 . 1 . . . . . . . . . . . . 3 . Intercept . | . . . . . . . . . . . . . . . . . . . . Searches Triggered . | . . . . . . . . . . . . . . . . . . . . Construction Impeded 3 | . . . . . 1 . . . . . . . . . . . 1 . 1 Haulers Reinforced . | . . . . . . . . . . . . . . . . . . . . Active Scanning Responses . | . . . . . . . . . . . . . . . . . . . . Cargo Convoy Interrupts . | . . . . . . . . . . . . . . . . . . . . Stealth | -11 -10 -10 -8 -8 -8 -8 -7 -7 -7 -7 -7 -7 -5 -5 -4 -4 -3 -3 -2 --------- Run | Yrd Mat Sub Mat Gar Mat Gar Fac Gar Fac Sto Rec Scr Fac Gar Fac Gar Res Tes Res Distress Signals 17 | . . . 3 . 4 . . . . 1 . . 1 . 1 . 1 3 3 Communications Jammed . | . . . . . . . . . . . . . . . . . . . . Distress Signals . | . . . . . . . . . . . . . . . . . . . . Times Spotted 646 | . 28 19 43 26 36 15 5 24 11 37 4 115 14 35 44 45 50 69 26 Peak Tracking Total 12 | . 3 6 11 7 9 7 2 6 3 6 3 9 3 5 9 9 11 5 12 Tactical Retreats 45 | . 1 1 2 . 1 . . 3 3 . . 6 . 2 6 5 8 6 1 Traps | -11 -10 -10 -8 -8 -8 -8 -7 -7 -7 -7 -7 -7 -5 -5 -4 -4 -3 -3 -2 ------- Run | Yrd Mat Sub Mat Gar Mat Gar Fac Gar Fac Sto Rec Scr Fac Gar Fac Gar Res Tes Res Traps Triggered 35 | . 1 1 . 5 2 4 . 3 1 . . . 1 3 . 3 4 5 2 Indirectly . | . . . . . . . . . . . . . . . . . . . . Trap Hack Attempts . | . . . . . . . . . . . . . . . . . . . . Triggered . | . . . . . . . . . . . . . . . . . . . . Disarmed . | . . . . . . . . . . . . . . . . . . . . Reprogrammed 2 | . . . 1 . . . . . . . . . 1 . . . . . . Reused 1 | . . . . . . 1 . . . . . . . . . . . . . Traps Extracted . | . . . . . . . . . . . . . . . . . . . . Installed 2 | . . . . . . 1 1 . . . . . . . . . . . . Triggered 2 | . 1 . . . . 1 . . . . . . . . . . . . . Most Traps Carried 2 | . . . . 2 2 2 1 . . . . . . . . . . . . Machines | -11 -10 -10 -8 -8 -8 -8 -7 -7 -7 -7 -7 -7 -5 -5 -4 -4 -3 -3 -2 ---------- Run | Yrd Mat Sub Mat Gar Mat Gar Fac Gar Fac Sto Rec Scr Fac Gar Fac Gar Res Tes Res Machines Disabled 80 | . . 1 . 2 1 . . 1 . 4 2 22 . 2 21 1 10 12 1 Max in Single Turn 15 | . . 1 . 1 . . . 1 . 1 1 2 . 2 15 1 1 1 1 Garrison Access 3 | . . . . . . . . . . . . . . . 1 . 1 . 1 Garrison Relay 3 | . . . . . . . . 1 . . . . . . . 2 . . . Phase Generator 1 | . . . . . . . . . . . . . . 1 . . . . . Machines Repaired . | . . . . . . . . . . . . . . . . . . . . Machines Dismantled . | . . . . . . . . . . . . . . . . . . . . Machines Sabotaged 2 | . 2 . . . . . . . . . . . . . . . . . . Overloaded Fab Kills 1 | . . . . . . . . . . . . . . . . . . 1 . Hacking | -11 -10 -10 -8 -8 -8 -8 -7 -7 -7 -7 -7 -7 -5 -5 -4 -4 -3 -3 -2 --------- Run | Yrd Mat Sub Mat Gar Mat Gar Fac Gar Fac Sto Rec Scr Fac Gar Fac Gar Res Tes Res Machines Accessed 97 | . 9 1 7 4 14 3 1 4 3 9 10 4 7 3 4 1 4 9 . Terminals 72 | . 7 . 4 4 11 3 . 4 2 7 6 . 6 3 3 1 3 8 . Fabricators 1 | . . . . . . . . . . . . . . . . . . 1 . Repair Stations . | . . . . . . . . . . . . . . . . . . . . Recycling Units 12 | . 2 . 2 . 1 . . . 1 2 4 . . . . . . . . Scanalyzers 1 | . . . . . 1 . . . . . . . . . . . . . . Garrison Access 6 | . . . 1 . 1 . 1 . . . . . 1 . 1 . 1 . . Total Hacks 258 | . 36 4 20 6 38 5 1 8 7 26 20 22 23 7 7 2 5 21 . Successful 147 | . 22 4 13 3 20 2 1 3 5 12 12 22 14 2 1 1 2 8 . Failed 111 | . 14 . 7 3 18 3 . 5 2 14 8 . 9 5 6 1 3 13 . Catastrophic 17 | . 1 . . 1 3 1 . . . 1 1 . 2 2 1 . 1 3 . Database Lockouts . | . . . . . . . . . . . . . . . . . . . . Manual 171 | . 30 . 12 . 32 1 . . 6 23 18 . 19 . 6 . 4 20 . Terminals 205 | . 33 . 17 6 32 5 . 8 6 21 16 . 22 7 6 2 4 20 . Fabricators 1 | . . . . . . . . . . . . . . . . . . 1 . Repair Stations . | . . . . . . . . . . . . . . . . . . . . Recycling Units 16 | . 3 . 2 . 1 . . . 1 5 4 . . . . . . . . Scanalyzers 4 | . . . . . 4 . . . . . . . . . . . . . . Garrison Access 6 | . . . 1 . 1 . 1 . . . . . 1 . 1 . 1 . . Terminal Hacks 73 | . 8 4 6 3 5 2 . 3 1 5 2 22 7 2 . 1 1 1 . Record 20 | . . 4 . . . . . . . . 2 14 . . . . . . . Robot Analysis 14 | . 3 . . . 3 . . . . 1 . 7 . . . . . . . Prototype ID Bank 3 | . 2 . . . . . . . 1 . . . . . . . . . . Open Door 5 | . . . . 1 . . . 1 . 3 . . . . . . . . . Branch Access Points 3 | . 1 . 1 . . . . . . . . . . . . . 1 . . Emergency Access Points 4 | . . . . 1 . 1 . . . . . . . 1 . 1 . . . Terminal Index 3 | . 1 . . . . . . . . 1 . . 1 . . . . . . Garrison Index 1 | . . . . . . . . . . . . . 1 . . . . . . Alert Level 2 | . 1 . 1 . . . . . . . . . . . . . . . . Unreport Threat 5 | . . . 2 . 2 . . . . . . . . . . . . 1 . Locate Traps 3 | . . . . . . . . . . . . . 3 . . . . . . Reprogram Traps 3 | . . . 2 . . . . . . . . . 1 . . . . . . Zone Layout 1 | . . . . . . . . . . . . . 1 . . . . . . Garrison Registry 3 | . . . . 1 . 1 . 1 . . . . . . . . . . . Patrol Navigation 1 | . . . . . . . . 1 . . . . . . . . . . . Security Stations 1 | . . . . . . . . . . . . . . 1 . . . . . Derelict Proto ID Bank 1 | . . . . . . . . . . . . 1 . . . . . . . Fabricator Hacks . | . . . . . . . . . . . . . . . . . . . . Repair Station Hacks . | . . . . . . . . . . . . . . . . . . . . Recycling Unit Hacks . | . . . . . . . . . . . . . . . . . . . . Scanalyzer 4 | . . . . . 4 . . . . . . . . . . . . . . Insert Component 2 | . . . . . 2 . . . . . . . . . . . . . . Analyze 2 | . . . . . 2 . . . . . . . . . . . . . . Garrison Access Hacks 6 | . . . 1 . 1 . 1 . . . . . 1 . 1 . 1 . . Unlock Access 5 | . . . 1 . 1 . 1 . . . . . 1 . 1 . . . . Seal Access 1 | . . . . . . . . . . . . . . . . . 1 . . Unauthorized Hacks 64 | . 14 . 6 . 10 . . . 4 7 10 . 6 . . . . 7 . Terminals 52 | . 12 . 4 . 9 . . . 3 6 6 . 6 . . . . 6 . Assimilate 2 | . . . . . . . . . 1 1 . . . . . . . . . Botnet 43 | . 7 . 4 . 9 . . . 2 4 5 . 6 . . . . 6 . Operators 1 | . . . . . . . . . . 1 . . . . . . . . . Sabotage 4 | . 4 . . . . . . . . . . . . . . . . . . Search 2 | . 1 . . . . . . . . . 1 . . . . . . . . Fabricators 1 | . . . . . . . . . . . . . . . . . . 1 . Overload 1 | . . . . . . . . . . . . . . . . . . 1 . Repair Stations . | . . . . . . . . . . . . . . . . . . . . Recycling Units 11 | . 2 . 2 . 1 . . . 1 1 4 . . . . . . . . Tunnel 11 | . 2 . 2 . 1 . . . 1 1 4 . . . . . . . . Scanalyzers . | . . . . . . . . . . . . . . . . . . . . Garrison Access . | . . . . . . . . . . . . . . . . . . . . Data Cores Recovered 3 | . . . . . . . . . . . . . . . . . . 3 . Used . | . . . . . . . . . . . . . . . . . . . . Hacking Detections 67 | . 7 . 3 2 11 2 . 3 2 7 6 . 6 3 3 1 3 8 . Full Trace Events 13 | . 1 . . 1 1 . . 1 . 1 2 . 2 2 2 . . . . Feedback Events . | . . . . . . . . . . . . . . . . . . . . Feedback Blocked . | . . . . . . . . . . . . . . . . . . . . Robot Schematics Acquired 1 | . . . . . . . . . . . . . . . . . . 1 . Robots Built . | . . . . . . . . . . . . . . . . . . . . Authchips . | . . . . . . . . . . . . . . . . . . . . Time . | . . . . . . . . . . . . . . . . . . . . Total Robot Build Rating . | . . . . . . . . . . . . . . . . . . . . Part Schematics Acquired 6 | . . . . . 2 . . . . . . . . . . . . 4 . Parts Built . | . . . . . . . . . . . . . . . . . . . . Authchips . | . . . . . . . . . . . . . . . . . . . . Time . | . . . . . . . . . . . . . . . . . . . . Total Part Build Rating . | . . . . . . . . . . . . . . . . . . . . Parts Repaired . | . . . . . . . . . . . . . . . . . . . . Time . | . . . . . . . . . . . . . . . . . . . . Parts Recycled . | . . . . . . . . . . . . . . . . . . . . Recycled Matter . | . . . . . . . . . . . . . . . . . . . . Retrieved Matter . | . . . . . . . . . . . . . . . . . . . . Retrieved Components . | . . . . . . . . . . . . . . . . . . . . Parts Scanalyzed 2 | . . . . . 2 . . . . . . . . . . . . . . Part Schematics Acquired 2 | . . . . . 2 . . . . . . . . . . . . . . Parts Damaged . | . . . . . . . . . . . . . . . . . . . . Bothacking | -11 -10 -10 -8 -8 -8 -8 -7 -7 -7 -7 -7 -7 -5 -5 -4 -4 -3 -3 -2 ------------ Run | Yrd Mat Sub Mat Gar Mat Gar Fac Gar Fac Sto Rec Scr Fac Gar Fac Gar Res Tes Res Used RIF Installer 5 | . . . . 1 . 1 . 1 . . . . . 1 . 1 . . . Zone Cloak 2 | . . . . . . . . 1 . . . . . . . 1 . . . Robot Detection 1 | . . . . . . . . . . . . . . 1 . . . . . Program Shield 1 | . . . . . . 1 . . . . . . . . . . . . . Robots Hacked . | . . . . . . . . . . . . . . . . . . . . Non-combat . | . . . . . . . . . . . . . . . . . . . . Combat . | . . . . . . . . . . . . . . . . . . . . Robot Hacks Applied . | . . . . . . . . . . . . . . . . . . . . Relay Couplers Released 7 | . . . . . . . . 3 . . . . . . . 3 . . 1 Machine Destruction 6 | . . . . . . . . 2 . . . . . . . 3 . . 1 Programmers 1 | . . . . . . . . 1 . . . . . . . . . . . Fabnet Peak Effective % . | . . . . . . . . . . . . . . . . . . . . Robots Rewired 4 | . . . . . . . . 3 . . . . . . . 1 . . . Allies Hacked 1 | . . . . . . . . 1 . . . . . . . . . . . Hacks Repelled . | . . . . . . . . . . . . . . . . . . . . Allies | -11 -10 -10 -8 -8 -8 -8 -7 -7 -7 -7 -7 -7 -5 -5 -4 -4 -3 -3 -2 -------- Run | Yrd Mat Sub Mat Gar Mat Gar Fac Gar Fac Sto Rec Scr Fac Gar Fac Gar Res Tes Res Total Allies 27 | . . 8 . 2 . . . 3 . 13 . . . . . 1 . . . Largest Group 10 | . . 7 7 2 1 . . 3 3 10 10 10 . . . 1 1 . . Highest-Rated Group 173 | . . 133 133 70 39 . . 82 82 173 173 173 . . . 85 85 . . Highest-Rated Ally 85 | . . 19 19 39 39 . . 31 31 31 29 29 . . . 85 85 . . Total Orders 22 | . . . . . . . . 1 2 6 1 10 . . . . 2 . . STAY 19 | . . . . . . . . 1 2 4 1 10 . . . . 1 . . ROAM 1 | . . . . . . . . . . 1 . . . . . . . . . FOLLOW 2 | . . . . . . . . . . 1 . . . . . . 1 . . Ally Attacks 279 | . . 3 57 34 15 . . 11 . 11 . 136 . . . 2 10 . . Total Damage 4095 | . . 45 919 440 155 . . 133 . 242 . 1570 . . . 21 570 . . Kills 41 | . . . 9 10 5 . . 1 . 1 . 12 . . . 1 2 . . Allies Corrupted . | . . . . . . . . . . . . . . . . . . . . Allies Melted . | . . . . . . . . . . . . . . . . . . . . Intel | -11 -10 -10 -8 -8 -8 -8 -7 -7 -7 -7 -7 -7 -5 -5 -4 -4 -3 -3 -2 ------- Run | Yrd Mat Sub Mat Gar Mat Gar Fac Gar Fac Sto Rec Scr Fac Gar Fac Gar Res Tes Res Robot Analysis Total 14 | . 3 . . . 3 . . . . 1 . 7 . . . . . . . Derelict Logs Recovered 2 | . . 2 . . . . . . . . . . . . . . . . . Drone Launches . | . . . . . . . . . . . . . . . . . . . . Drone Recoveries . | . . . . . . . . . . . . . . . . . . . . Exploration | -11 -10 -10 -8 -8 -8 -8 -7 -7 -7 -7 -7 -7 -5 -5 -4 -4 -3 -3 -2 ------------- Run | Yrd Mat Sub Mat Gar Mat Gar Fac Gar Fac Sto Rec Scr Fac Gar Fac Gar Res Tes Res Turns Passed 18519 | 40 1116 893 526 650 670 281 174 713 564 736 685 3353 1061 830 1091 1314 1190 1979 653 Spaces Moved 18716 | 36 1359 1558 786 1053 1153 340 402 1099 1064 818 959 2859 791 522 692 815 760 1257 393 Core 1 | 1 . . . . . . . . . . . . . . . . . . . Treads 6731 | . . . . . . . . . . . . 1501 791 522 692 815 760 1257 393 Legs . | . . . . . . . . . . . . . . . . . . . . Wheels 185 | 35 149 . . . . . . . . . . 1 . . . . . . . Hover 6855 | . 1210 287 . . . . 61 1099 1064 818 959 1357 . . . . . . . Flight 4944 | . . 1271 786 1053 1153 340 341 . . . . . . . . . . . . Fastest Speed 34 | 50 48 40 34 34 34 34 34 42 40 38 40 36 120 120 120 120 120 120 120 Average Speed 69 | 87 57 41 39 34 34 34 35 42 40 39 40 84 120 120 120 120 120 120 120 Slowest Speed 230 | 90 125 48 40 34 34 34 45 45 42 40 40 230 120 120 120 120 120 120 120 Overloaded Moves . | . . . . . . . . . . . . . . . . . . . . Propulsion Burnouts . | . . . . . . . . . . . . . . . . . . . . Robots Hopped 37 | . . . 2 1 31 . 3 . . . . . . . . . . . . Cave-ins Triggered . | . . . . . . . . . . . . . . . . . . . . Exploration Rate (%) 60 | 3 82 92 76 89 96 52 13 82 21 93 99 93 19 78 19 83 30 91 6 Regions Visited 19 Branch Regions 5 Pre-discovered Areas 12 | . 2 1 2 . 1 . . . 1 1 4 . . . . . . . . Known Exits Taken 13 | . 1 1 1 . 1 . 1 . 1 1 1 1 1 . 1 . 1 1 . Unknown Exits Taken 1 | 1 . . . . . . . . . . . . . . . . . . . Scrap Searched 6 | . . . . . . . . . . . . 6 . . . . . . . Spaces Dug 154 | . 2 . . 1 . . 1 1 4 3 . 8 . 1 31 2 82 14 4 Terrain Destroyed 934 | . 2 . . 3 8 5 2 5 5 19 8 104 31 129 173 114 188 79 59 Melee 2 | . 2 . . . . . . . . . . . . . . . . . . Projectile 713 | . . . . 3 8 5 2 5 5 19 8 104 31 57 83 114 138 77 54 AOE 212 | . . . . . . . . . . . . . . 72 90 . 50 . . Terrain Rammed . | . . . . . . . . . . . . . . . . . . . . Walls Destroyed . | . . . . . . . . . . . . . . . . . . . . Machines Disabled . | . . . . . . . . . . . . . . . . . . . . Actions | -11 -10 -10 -8 -8 -8 -8 -7 -7 -7 -7 -7 -7 -5 -5 -4 -4 -3 -3 -2 --------- Run | Yrd Mat Sub Mat Gar Mat Gar Fac Gar Fac Sto Rec Scr Fac Gar Fac Gar Res Tes Res Total 22476 | 41 1526 1730 913 1233 1321 453 422 1275 1169 1105 1166 3562 880 661 888 1057 945 1627 502 Wait 1683 | . 30 93 47 17 129 17 7 33 74 143 148 292 54 46 110 79 69 237 58 Move 18621 | 35 1358 1557 781 1049 1093 338 395 1097 1063 817 958 2858 790 520 691 813 759 1256 393 Hop 34 | . . . 2 1 28 . 3 . . . . . . . . . . . . Pick Up 32 | . 3 1 . 2 2 2 1 4 . . . 10 1 1 3 1 . 1 . Fast Attach 52 | 6 4 3 7 2 2 . 3 3 . . . 12 1 1 1 . 1 6 . Attach 20 | . 2 . . 1 1 . 3 . . . . 10 1 . . 1 . . 1 Detach 10 | . . . 1 2 2 . . . . . . 5 . . . . . . . Swap 60 | . 8 . . 2 4 . 1 7 5 9 . 5 . 1 3 2 1 11 1 Drop 64 | . 4 7 3 2 2 2 3 4 1 1 . 28 1 1 2 1 . 1 1 Fire 1101 | . 22 52 40 41 39 29 5 45 19 81 19 257 23 64 64 93 90 70 48 Melee 129 | . 75 . . 17 . . . 4 . 1 32 . . . . . . . . Ram . | . . . . . . . . . . . . . . . . . . . . Kick . | . . . . . . . . . . . . . . . . . . . . Crush 11 | . . . . . . . . . . . . 1 . . 1 2 7 . . Escape Stasis 155 | . . . . 68 . 52 . 33 . . . . . 2 . . . . . Rewire 38 | . . . . . . . . 13 . . . . . . . 25 . . . Trap 2 | . . . . . . 1 1 . . . . . . . . . . . . Miscellaneous 464 | . 20 17 32 29 19 12 . 32 7 53 9 84 9 25 13 40 18 45 . Route ------- -11/Scrapyard -10/Materials (discovered 4 exits: *Mat x2 / *Min / *Sub) -10/Subcaves (discovered 3 exits: *Mat x2 / *Rec) -8/Materials (discovered 3 exits: *Fac x2 / Gar) -8/Garrison (discovered 3 exits: *Mat x3) -8/Materials (discovered 4 exits: *Fac x3 / Gar) -8/Garrison (discovered 3 exits: *Fac x3) -7/Factory -7/Garrison (discovered 3 exits: *Fac x3) -7/Factory -7/Storage (discovered 2 exits: [*Fac] / *Rec) -7/Recycling (discovered 2 exits: *Fac / *Scr) -7/Scraptown (discovered 2 exits: *Fac x2) -5/Factory (discovered 2 exits: *Fac / Gar) -5/Garrison (discovered 3 exits: *Fac x3) -4/Factory (discovered 2 exits: *Res / Gar) -4/Garrison (discovered 3 exits: *Res x3) -3/Research (discovered 4 exits: *Res / Arm / *Tes x2) -3/Testing -2/Research History --------- Turn | Location | Event 1 | -11/Scrapyard | Upgraded with Propulsion slot (x1) 1 | -11/Scrapyard | Upgraded with Utility slot (x1) 1 | -11/Scrapyard | Upgraded with Weapon slot (x1) 1 | -11/Scrapyard | Upgraded with Power slot (x1) 10 | -11/Scrapyard | Discovered new exit (range 15) 41 | -11/Scrapyard | Entered Materials 198 | -10/Materials | Discovered new exit (range 12) 245 | -10/Materials | Upgraded with Power slot (x1) 266 | -10/Materials | Discovered new exit (range 16) 288 | -10/Materials | Identified exit to Mines 300 | -10/Materials | Build established: Mutant 303 | -10/Materials | Identified exit to Materials 532 | -10/Materials | Reached level 2 541 | -10/Materials | Upgraded with Propulsion slot (x1) 555 | -10/Materials | Discovered exit to Materials (range 13) 941 | -10/Materials | Derelicts attacked the area 959 | -10/Materials | Reached level 3 971 | -10/Materials | Upgraded with Utility slot (x1) 1064 | -10/Materials | Discovered new exit (range 10) 1139 | -10/Materials | Upgraded with Propulsion slot (x1) 1156 | -10/Materials | Identified exit to Subcaves 1157 | -10/Materials | Entered Subcaves 1159 | -10/Subcaves | Reached level 4 1189 | -10/Subcaves | Discovered new exit (range 13) 1338 | -10/Subcaves | Upgraded with Weapon slot (x1) 1376 | -10/Subcaves | Visited 4L-MR0's lab 1383 | -10/Subcaves | Found Prototype Flight Unit 1383 | -10/Subcaves | Identified Flightbrick 1384 | -10/Subcaves | Attached Flightbrick, gained temporary slots: Utility x3 1538 | -10/Subcaves | Visited triangular shrine 1541 | -10/Subcaves | Found Prototype Device 1541 | -10/Subcaves | Identified V3-11A's Pendant 1546 | -10/Subcaves | Befriended Subdweller 1638 | -10/Subcaves | Build established: Skirmisher 1646 | -10/Subcaves | Befriended Subdweller 1646 | -10/Subcaves | Befriended Subdweller 1726 | -10/Subcaves | Befriended Subdweller 1742 | -10/Subcaves | Discovered new exit (range 9) 1744 | -10/Subcaves | Identified exit to Materials 1746 | -10/Subcaves | Befriended Subdweller 1756 | -10/Subcaves | Befriended Subdweller 1764 | -10/Subcaves | Visited Clippyterm 1765 | -10/Subcaves | Learned location of Section 7 (-2) 1765 | -10/Subcaves | Learned Research machine intel 1946 | -10/Subcaves | Befriended Subdweller 1946 | -10/Subcaves | Befriended Subdweller 1946 | -10/Subcaves | Discovered exit to Materials (range 13) 1949 | -10/Subcaves | Learned 4 Materials zone layouts 2050 | -10/Subcaves | Entered Materials 2050 | -8/Materials | Accompanied by 7 allies 2051 | -8/Materials | Identified exit to Factory 2052 | -8/Materials | Reached level 5 2052 | -8/Materials | Reached level 6 2091 | -8/Materials | Build established: Mutant 2127 | -8/Materials | Reached level 7 2209 | -8/Materials | Upgraded with Utility slot (x1) 2238 | -8/Materials | Discovered exit to Factory (range 3) 2272 | -8/Materials | Reached level 8 2341 | -8/Materials | Reached level 9 2369 | -8/Materials | Lost 6 allies 2537 | -8/Materials | Upgraded with Propulsion slot (x1) 2564 | -8/Materials | Garrison activated, responded to threat 2575 | -8/Materials | Identified exit to Garrison 2576 | -8/Materials | Entered Garrison 2578 | -8/Garrison | Reached level 10 2590 | -8/Garrison | Triggered checkpoint 2624 | -8/Garrison | Build established: Gunner 2759 | -8/Garrison | Discovered new exit (range 12) 2773 | -8/Garrison | Installed Relay Interface Framework 2810 | -8/Garrison | Triggered checkpoint 2819 | -8/Garrison | Reached level 11 2823 | -8/Garrison | Rescued a captive Derelict 2827 | -8/Garrison | Rescued a captive Derelict 2935 | -8/Garrison | Upgraded with Utility slot (x1) 2950 | -8/Garrison | Discovered new exit (range 8) 2979 | -8/Garrison | Triggered checkpoint 3022 | -8/Garrison | Triggered checkpoint 3034 | -8/Garrison | Reached level 12 3088 | -8/Garrison | Discovered new exit (range 10) 3124 | -8/Garrison | Discovered new exit (range 79) 3124 | -8/Garrison | Discovered new exit (range 50) 3124 | -8/Garrison | Discovered new exit (range 62) 3213 | -8/Garrison | Identified exit to Materials 3226 | -8/Garrison | Entered Materials 3226 | -8/Materials | Accompanied by 1 ally 3276 | -8/Materials | Build established: Mutant 3373 | -8/Materials | Destroyed 8 combat bots 3457 | -8/Materials | Discovered exit to Factory (range 10) 3481 | -8/Materials | Reached level 13 3718 | -8/Materials | Destroyed 8 combat bots 3748 | -8/Materials | Build established: Scavenger-Mutant 3761 | -8/Materials | Discovered exit to Factory (range 5) 3856 | -8/Materials | Upgraded with Utility slot (x1) 3883 | -8/Materials | Garrison activated, responded to threat 3889 | -8/Materials | Discovered exit to Factory (range 15) 3896 | -8/Materials | Identified exit to Garrison 3896 | -8/Materials | Entered Garrison 3924 | -8/Garrison | Expanded RIF knowledge: Program Shield 3995 | -8/Garrison | Destroyed 8 combat bots 4004 | -8/Garrison | Triggered checkpoint 4030 | -8/Garrison | Discovered exit to Factory (range 12) 4050 | -8/Garrison | Discovered exit to Factory (range 12) 4050 | -8/Garrison | Discovered exit to Factory (range 41) 4050 | -8/Garrison | Discovered exit to Factory (range 58) 4112 | -8/Garrison | Triggered checkpoint 4177 | -8/Garrison | Entered Factory 4179 | -7/Factory | Reached level 14 4270 | -7/Factory | Identified exit to Garrison 4320 | -7/Factory | Upgraded with Utility slot (x1) 4351 | -7/Factory | Entered Garrison 4353 | -7/Garrison | Reached level 15 4361 | -7/Garrison | Expanded RIF knowledge: Zone Cloak 4389 | -7/Garrison | Triggered checkpoint 4482 | -7/Garrison | Destroyed 8 combat bots 4528 | -7/Garrison | Discovered new exit (range 10) 4532 | -7/Garrison | Identified exit to Factory 4583 | -7/Garrison | Triggered checkpoint 4631 | -7/Garrison | Triggered checkpoint 4639 | -7/Garrison | Triggered checkpoint 4667 | -7/Garrison | Discovered exit to Factory (range 9) 4702 | -7/Garrison | Reached level 16 4711 | -7/Garrison | Discovered exit to Factory (range 10) 4753 | -7/Garrison | Garrison Relay disabled 4860 | -7/Garrison | Discovered exit to Factory (range 5) 4860 | -7/Garrison | Discovered exit to Factory (range 62) 4860 | -7/Garrison | Discovered exit to Factory (range 86) 4971 | -7/Garrison | Upgraded with Utility slot (x1) 5064 | -7/Garrison | Entered Factory 5064 | -7/Factory | Accompanied by 3 allies 5150 | -7/Factory | Discovered new exit (range 10) 5158 | -7/Factory | Identified exit to Storage 5628 | -7/Factory | Entered Storage 5628 | -7/Storage | Accompanied by 3 allies 5678 | -7/Storage | Lost 3 allies 5743 | -7/Storage | Reached level 17 5800 | -7/Storage | Discovered new exit (range 12) 5862 | -7/Storage | Met a pair of Derelict thieves 5956 | -7/Storage | Lost 3 allies 6158 | -7/Storage | Used back door to open Recycling access 6158 | -7/Storage | Discovered new exit (range 5) 6232 | -7/Storage | Destroyed 11 combat bots 6276 | -7/Storage | Assisted by bots powering up and referring to "LRC-V3" 6295 | -7/Storage | Identified exit to Recycling 6364 | -7/Storage | Entered Recycling 6364 | -7/Recycling | Accompanied by 10 allies 6388 | -7/Recycling | Scanned before Scraplab entrance 6416 | -7/Recycling | Entered Scraplab 6419 | -7/Recycling | Discovered new exit (range 3) 6420 | -7/Recycling | Identified exit to Scraptown 6570 | -7/Recycling | Discovered new exit (range 8) 6572 | -7/Recycling | Build established: Commander-Mutant 6938 | -7/Recycling | Identified exit to Factory 6996 | -7/Recycling | Reached level 18 7049 | -7/Recycling | Entered Scraptown 7049 | -7/Scraptown | Accompanied by 10 allies 7107 | -7/Scraptown | Heard Great Nut preacher, LISTEN AND RECITE! 7110 | -7/Scraptown | Discovered exit to Factory (range 13) 7142 | -7/Scraptown | Visited Junk Repository 7154 | -7/Scraptown | Visited Red Mages 7174 | -7/Scraptown | Visited SPCMW 7180 | -7/Scraptown | Visited Cave Peace 7225 | -7/Scraptown | Visited Cyclists 7233 | -7/Scraptown | Visited The Evicted 7240 | -7/Scraptown | Visited Awakened 7446 | -7/Scraptown | Upgraded with Propulsion slot (x1) 7634 | -7/Scraptown | Turned away by UFD registrar 7741 | -7/Scraptown | Build established: Commander-Gunner 7757 | -7/Scraptown | Attacked by Scraptown defenders 7761 | -7/Scraptown | Allies destroyed Triborg 7768 | -7/Scraptown | Found Tri-treads 7775 | -7/Scraptown | Found Tri-treads 7778 | -7/Scraptown | Found Prototype Ballistic Cannon 7779 | -7/Scraptown | Identified Siege Cannon 7783 | -7/Scraptown | Found Siege Articulator 7788 | -7/Scraptown | Found Siege Articulator 7794 | -7/Scraptown | Found Siege Articulator 7845 | -7/Scraptown | Lost 8 allies 7917 | -7/Scraptown | Destroyed 14 combat bots 7989 | -7/Scraptown | Entered Cyclist Reading Room 8068 | -7/Scraptown | Build established: Scavenger-Gunner 8582 | -7/Scraptown | Destroyed 9 combat bots 9059 | -7/Scraptown | Destroyed 34 combat bots 9222 | -7/Scraptown | Destroyed 20 combat bots 9261 | -7/Scraptown | Visited Analyses Database 9289 | -7/Scraptown | Visited DA-N13 Charitable Foundation 9295 | -7/Scraptown | Found DCF Scrap (32 items) 9316 | -7/Scraptown | Visited Modified Component R&D 9437 | -7/Scraptown | Visited Curators Association 9456 | -7/Scraptown | Found Prototype Reactor 9456 | -7/Scraptown | Identified MA-1KR's Cyclogen 9496 | -7/Scraptown | Visited Science Guys 9556 | -7/Scraptown | Visited Chapter 10 9575 | -7/Scraptown | Visited Derelict Rescue Squad 9592 | -7/Scraptown | Visited Science Testing Area 9609 | -7/Scraptown | Visited Infowarlord's Domain 9619 | -7/Scraptown | Found Exp. Sensor Array 9857 | -7/Scraptown | Found Prototype Wheel 9857 | -7/Scraptown | Identified Ballwheel 9880 | -7/Scraptown | Found Deploy-a-Sentry 10392 | -7/Scraptown | Discovered exit to Factory (range 5) 10402 | -7/Scraptown | Entered Factory 10404 | -5/Factory | Reached level 19 10454 | -5/Factory | Identified exit to Garrison 11339 | -5/Factory | Discovered new exit (range 4) 11354 | -5/Factory | Reached level 20 11356 | -5/Factory | Upgraded with Utility slot (x1) 11463 | -5/Factory | Entered Garrison 11509 | -5/Garrison | Triggered checkpoint 11546 | -5/Garrison | Learned Factory security intel 11593 | -5/Garrison | Spotted B-75 Beast 11601 | -5/Garrison | Triggered checkpoint 11654 | -5/Garrison | Reached level 21 11674 | -5/Garrison | Destroyed B-75 Beast 11777 | -5/Garrison | Triggered checkpoint 11828 | -5/Garrison | Discovered new exit (range 10) 11855 | -5/Garrison | Triggered checkpoint 11972 | -5/Garrison | Discovered new exit (range 8) 11985 | -5/Garrison | Expanded RIF knowledge: Robot Detection 12021 | -5/Garrison | Triggered checkpoint 12073 | -5/Garrison | Triggered checkpoint 12183 | -5/Garrison | Triggered checkpoint 12243 | -5/Garrison | Phase Generator disabled 12243 | -5/Garrison | Reached level 22 12270 | -5/Garrison | Discovered new exit (range 13) 12293 | -5/Garrison | Entered Factory 12295 | -4/Factory | Reached level 23 12369 | -4/Factory | Upgraded with Utility slot (x1) 12766 | -4/Factory | Reached level 24 12903 | -4/Factory | Discovered new exit (range 9) 13043 | -4/Factory | First assault squad dispatched 13262 | -4/Factory | Reached level 25 13383 | -4/Factory | Identified exit to Garrison 13384 | -4/Factory | Entered Garrison 13444 | -4/Garrison | Triggered checkpoint 13463 | -4/Garrison | Garrison Relay disabled 13544 | -4/Garrison | Triggered checkpoint 13602 | -4/Garrison | Triggered checkpoint 13617 | -4/Garrison | Triggered checkpoint 13643 | -4/Garrison | Destroyed 8 combat bots 13688 | -4/Garrison | Triggered checkpoint 13826 | -4/Garrison | Discovered new exit (range 15) 13892 | -4/Garrison | Triggered checkpoint 13901 | -4/Garrison | Reached level 26 13952 | -4/Garrison | Expanded RIF knowledge: Zone Cloak 14002 | -4/Garrison | Discovered new exit (range 11) 14062 | -4/Garrison | Triggered checkpoint 14094 | -4/Garrison | Triggered checkpoint 14094 | -4/Garrison | Garrison Relay disabled 14274 | -4/Garrison | Triggered checkpoint 14316 | -4/Garrison | Discovered new exit (range 3) 14350 | -4/Garrison | Spotted B-90 Cyclops 14356 | -4/Garrison | Destroyed B-90 Cyclops 14400 | -4/Garrison | Rewired B-75 Beast 14428 | -4/Garrison | Upgraded with Utility slot (x1) 14524 | -4/Garrison | Triggered checkpoint 14554 | -4/Garrison | Triggered checkpoint 14698 | -4/Garrison | Entered Research 14698 | -3/Research | Accompanied by 1 ally 14699 | -3/Research | Loaded intel: 107 machine locations 14700 | -3/Research | Reached level 27 14948 | -3/Research | First assault squad dispatched 14989 | -3/Research | Identified exit to Armory 14989 | -3/Research | Identified exit to Testing 15456 | -3/Research | Reached level 28 15736 | -3/Research | Spotted B-86 Titan 15845 | -3/Research | Discovered new exit (range 13) 15888 | -3/Research | Entered Testing 16030 | -3/Testing | Found Prototype Device 16030 | -3/Testing | Identified Exp. Shield Generator 16111 | -3/Testing | Reached level 29 16138 | -3/Testing | First assault squad dispatched 16200 | -3/Testing | Garrison activated, responded to threat 16307 | -3/Testing | Upgraded with Weapon slot (x1) 16403 | -3/Testing | Found Prototype Processor 16403 | -3/Testing | Identified Exp. Melee Analysis Suite 16500 | -3/Testing | Discovered new exit (range 15) 16642 | -3/Testing | Found Prototype Ballistic Gun 16642 | -3/Testing | Identified Hyp. Multirail 17098 | -3/Testing | Found Prototype Hackware 17098 | -3/Testing | Identified System Mapper 17134 | -3/Testing | Spotted PG-K5GNG3GUSV 17404 | -3/Testing | Build established: Hacker-Gunner 17865 | -3/Testing | Identified exit to Research 17867 | -3/Testing | Entered Research 17869 | -2/Research | Reached level 30 18302 | -2/Research | Reached level 31 18304 | -2/Research | Upgraded with Utility slot (x1) 18441 | -2/Research | Core integrity fell below 50% 18487 | -2/Research | Core integrity fell below 20% 18520 | -2/Research | Destroyed by G-73 Enforcer with Phase Gun Last Messages --------------- 18509_ ALERT: Alarm triggered, dispatching investigation squad. 18514_ Activated siege mode. 18514_ Siege Slug penetrates B-74 Champion. 18514_ B-74 Champion destroyed. 18515_ Acquired 1 matter. 18515_ Acquired 13 matter. 18516_ Siege Slug penetrates Wall. 18517_ Acquired 14 matter. 18518_ Siege Slug penetrates G-73 Enforcer. 18518_ G-73 Enforcer knocked back. 18518_ Siege Slug penetrates G-73 Enforcer. 18519_ Acquired 14 matter. 18519_ M-36 Artificer repairs G-73 Enforcer. 18520_ Siege Slug penetrates G-73 Enforcer. 18520_ G-73 Enforcer suffers critical hit (Blast). 18520_ Destroyed Hvy. Laser. 18520_ G-73 Enforcer destroyed. 18520_ Siege Slug penetrates Wall. Map ----- +----------------------------------------------------+ | ?????????????????????????? # %! #???? | | ?????????????????????????????#" #???? | | ??????????????????????????????# #???? | | ??????????????????????????????# =! #???? | | ??????????????????????????????# == #???? | | ??????????????????????????????###"#"%######???? | | ??????????????????????????????# !! #???????? | | ??????????????????????????????# = #???????? | | ??????????????????????????????# % #???????? | | ??????????????????????????????# #???????? | | ???????????????????????###########% #???????? | | ???????????????????????# ["% %#???????? | | ???????????????????????# *[ *######### | | ???????????????????????# """ !" % %!=%= ? | | ???????????????????????# "Y" ?" ?[=%?=* | | ???????????????????????# " " # !=%! | | ???????????????????????# [ # % % [=[? | | ???????????????????????# #% %######### | | ?????????????????????### # % ##??????? | | ?????????????????????# #;###"#####? "#??????? | | ?????????????????????#;#;;# !! ? # #### * | | ?????????????????????#%! m ! # " | | ?????????????????????#gg! ! ###### | | ?????????????????????#%g### #???????? | | ????????????##########/;###^ #######??? | | ????????????# @ #^ ^ # #??? | | ????????????# # + #??? | | ????????????# + # #??? | | ????????????# # # #??? | | ????????????# # # #??? | | ????????????# # # #??? | | ????????????################+###### # #??? | | ????????????????????# ## # #??? | | ????????????????????# ## # #??? | | ????????????????????# """ """ =## # #??? | | ????????????????????# """ """ ## # #??? | | ????????????????????# """ """ ## # #??? | | ????????????????????# ## #######??? | | ????????????????????# ## #????????? | | ????????????????????# """ """ ## #????????? | | ????????????????????#] """ """ ## #????????? | | ????????????????????# """ """ ## #????????? | | ????????????????????# ## #????????? | | ????????????????????# ## #????????? | | ????????????????????#######+####### #????????? | | ???????????????????????# ##### #????????? | | ???????????????????????# [ #"""" ^#????????? | | ?????????????????????### %[ #????????? | | ?????????????????????# " ! #????????? | | ?????????????????????### ########????????? | +----------------------------------------------------+ Best States ------------- Heat Dissipation 87 Energy Generation 51 Energy Capacity 2750 Matter Stores 700 Matter Capacity 700 Sight Range 20 Robot Scan Range 30 Terrain Scan Density 10 Armor Coverage 900 Resistance: KI 35 Resistance: TH 35 Resistance: EX 20 Resistance: EM 20 Resistance: I 20 Resistance: S 20 Resistance: P 20 Weapon Cycling 30 Phase Shifting 15 Evasion (%) 84 Target Analysis 8 Core Analysis 6 Armor Integrity Analysis 40 Recoil Reduction 6 Energy Filtering 50 Particle Charging 15 Kinecelleration 40 Offensive Hacking 45 Defensive Hacking 5 Item Schematics ----------------- Lgt. Armor Plating | -8/Materials | Scanalyzed Spread Laser | -8/Materials | Scanalyzed Enh. Flexi-carbon Leg | -3/Testing | Archive Cld. Gravmag System | -3/Testing | Archive Adv. Matter Compressor | -3/Testing | Archive Exp. Thermal Shield | -3/Testing | Archive Robot Schematics ------------------ A-15 Conveyor | -3/Testing | Archive Fabricated ------------ Nothing Alien Tech Used ----------------- None Achievements -------------- None Challenges ------------ None RPGLIKE | -11 -10 -10 -8 -8 -8 -8 -7 -7 -7 -7 -7 -7 -5 -5 -4 -4 -3 -3 -2 --------- Run | Yrd Mat Sub Mat Gar Mat Gar Fac Gar Fac Sto Rec Scr Fac Gar Fac Gar Res Tes Res Levels Raised 30 | . 2 1 5 3 1 . 1 2 . 1 1 . 2 2 3 1 2 1 2 XP Earned 49839 | 4000 3722 1950 7642 3554 1722 673 1548 1997 612 1560 528 96 3187 2812 4425 1960 3290 1912 2649 XP Spent 48935 | 2000 4970 800 7900 3850 1700 . 2000 2300 550 . . 3415 2600 . 6050 3200 1400 2025 4175 Upgrades 74 | 4 11 1 12 5 1 . 1 1 1 . . 9 1 . 4 1 4 8 10 Power Slot 2 | 1 1 . . . . . . . . . . . . . . . . . . Propulsion Slot 5 | 1 2 . 1 . . . . . . . . 1 . . . . . . . Utility Slot 11 | 1 1 . 1 1 1 . 1 1 . . . . 1 . 1 1 . . 1 Weapon Slot 3 | 1 . 1 . . . . . . . . . . . . . . . 1 . Core Integrity 10 | . . . . . . . . . . . . 1 . . . . . . 9 Heat Dissipation 8 | . 4 . . . . . . . . . . 4 . . . . . . . Energy Generation 2 | . . . 1 . . . . . 1 . . . . . . . . . . Matter Storage 2 | . . . . . . . . . . . . . . . . . . 2 . Mass Support 2 | . . . . 2 . . . . . . . . . . . . . . . Inventory Capacity 5 | . 1 . 1 2 . . . . . . . . . . 1 . . . . Sensor Range 5 | . . . . . . . . . . . . . . . . . . 5 . Ranged Accuracy 4 | . 2 . 2 . . . . . . . . . . . . . . . . Hack Attack % 3 | . . . . . . . . . . . . . . . . . 3 . . Hack Defense % 1 | . . . . . . . . . . . . . . . . . 1 . . KI Resistance % 3 | . . . . . . . . . . . . 3 . . . . . . . KI Damage % 4 | . . . 2 . . . . . . . . . . . 2 . . . . TH Damage % 4 | . . . 4 . . . . . . . . . . . . . . . . Protomatter Created 6503 | . 140 162 237 164 310 109 . 325 154 608 63 1371 324 285 282 436 505 770 258 Integrity Restored 8725 | . 407 363 625 624 382 222 . 562 125 1019 181 1479 111 463 186 717 360 899 . Core 5677 | . 379 363 415 356 266 222 . 314 93 642 134 732 47 277 117 505 232 583 . Parts 3048 | . 28 . 210 268 116 . . 248 32 377 47 747 64 186 69 212 128 316 . Protomatter Decayed 3232 | . 49 33 201 3 196 17 . 17 54 373 . 848 282 96 155 174 286 376 72 Game ------ Seed TechSmartbombNeutralizer Manual? 0 Play Time 04:31:14 Cumulative 224.8 hours Start 2025.03.03 @ 18:38:17 End 2025.03.04 @ 13:33:44 Sessions 5 Manual Loads 0 Difficulty Adventurer Special Mode Winter2019/RPGLIKE Game No. 99 Rogue 0 Adventurer 99 Explorer 0 Win Type - Total 8 Types 2/1/2/2/1/0/0/0/0 Lore% 78 Gallery% 70 Achievement% 76 Wizard Run 0 Options --------- Layout 2 ASCII 0 Keyboard 0 Movement Numpad Keybinds 0 Fullscreen 2 Font 24/Smallcaps Map View 50x44 Zoom Use 0% Tactical HUD 1 Map Filters NONE Filters NONE Steam 1 RUN: df9a9e08-2f35-446d-bc6b-7cb62547e334